[Event "*** SCC Grand Prix: Titled Tuesday Blitz"]
[Site "Chess.com"]
[Date "2020.06.23"]
[Round "1"]
[White "alexrustemov"]
[Black "renehp"]
[Result "0-1"]
[WhiteElo "2740"]
[BlackElo "2406"]
[TimeControl "180+1"]
[EndTime "10:08:37 PDT"]
[Termination "renehp won on time"]

1. d4 {[%clk 0:02:45.3]} 1... d5 {[%clk 0:02:59]} 2. c4 {[%clk 0:02:38.1]} 2...
c6 {[%clk 0:02:59]} 3. Nc3 {[%clk 0:02:36.9]} 3... Nf6 {[%clk 0:02:58.8]} 4. Nf3
{[%clk 0:02:35.2]} 4... dxc4 {[%clk 0:02:58.2]} 5. a4 {[%clk 0:02:31.9]} 5...
Bf5 {[%clk 0:02:56.7]} 6. e3 {[%clk 0:02:29.8]} 6... e6 {[%clk 0:02:54.6]} 7.
Bxc4 {[%clk 0:02:29.9]} 7... Bb4 {[%clk 0:02:54.1]} 8. O-O {[%clk 0:02:27.5]}
8... O-O {[%clk 0:02:54]} 9. Qe2 {[%clk 0:02:21.4]} 9... Nbd7 {[%clk 0:02:53.3]}
10. e4 {[%clk 0:02:18.8]} 10... Bg6 {[%clk 0:02:53.1]} 11. Bd3 {[%clk
0:02:16.7]} 11... Bh5 {[%clk 0:02:52.7]} 12. e5 {[%clk 0:02:14.2]} 12... Nd5
{[%clk 0:02:52.4]} 13. Nxd5 {[%clk 0:02:14]} 13... cxd5 {[%clk 0:02:53.3]} 14.
Qe3 {[%clk 0:02:14.4]} 14... Bg6 {[%clk 0:02:49.4]} 15. Bxg6 {[%clk 0:02:12.5]}
15... hxg6 {[%clk 0:02:50.3]} 16. Qf4 {[%clk 0:01:58.5]} 16... Rc8 {[%clk
0:02:43.2]} 17. Qg3 {[%clk 0:01:54.9]} 17... Be7 {[%clk 0:02:42.1]} 18. Bg5
{[%clk 0:01:19.4]} 18... Bxg5 {[%clk 0:02:40.8]} 19. Nxg5 {[%clk 0:01:17.9]}
19... Re8 {[%clk 0:02:41.1]} 20. Qf4 {[%clk 0:01:08.2]} 20... Qe7 {[%clk
0:02:39.4]} 21. Rfc1 {[%clk 0:01:06.3]} 21... Nf8 {[%clk 0:02:24.1]} 22. h4
{[%clk 0:01:04.4]} 22... Nh7 {[%clk 0:02:21.2]} 23. Nf3 {[%clk 0:01:01.9]} 23...
Qd7 {[%clk 0:02:14.7]} 24. b3 {[%clk 0:00:58.2]} 24... Rxc1+ {[%clk 0:02:12]}
25. Rxc1 {[%clk 0:00:59.1]} 25... Rc8 {[%clk 0:02:12.4]} 26. g3 {[%clk
0:00:57.5]} 26... Rc6 {[%clk 0:02:10.2]} 27. Qd2 {[%clk 0:00:53.1]} 27... Qc7
{[%clk 0:02:09.6]} 28. Rxc6 {[%clk 0:00:52.4]} 28... Qxc6 {[%clk 0:02:10.5]} 29.
Qb4 {[%clk 0:00:52]} 29... Nf8 {[%clk 0:02:07.8]} 30. Kg2 {[%clk 0:00:51.7]}
30... Nd7 {[%clk 0:02:05.5]} 31. Qe7 {[%clk 0:00:49.9]} 31... Nf8 {[%clk
0:02:02.8]} 32. Ng5 {[%clk 0:00:48.4]} 32... Qd7 {[%clk 0:02:02.7]} 33. Qb4
{[%clk 0:00:42.2]} 33... Qc7 {[%clk 0:01:51.7]} 34. a5 {[%clk 0:00:40.5]} 34...
Nh7 {[%clk 0:01:44.1]} 35. Nh3 {[%clk 0:00:39.1]} 35... Nf8 {[%clk 0:01:43.4]}
36. Nf4 {[%clk 0:00:36.7]} 36... b6 {[%clk 0:01:36.6]} 37. a6 {[%clk 0:00:34.3]}
37... Qc2 {[%clk 0:01:32.7]} 38. Nh3 {[%clk 0:00:31.8]} 38... Qe4+ {[%clk
0:01:29.7]} 39. Kh2 {[%clk 0:00:31.4]} 39... Qe2 {[%clk 0:01:24.7]} 40. Qe7
{[%clk 0:00:30.1]} 40... g5 {[%clk 0:01:12.5]} 41. Qxg5 {[%clk 0:00:20.2]} 41...
Qxa6 {[%clk 0:01:11.5]} 42. Qe7 {[%clk 0:00:19.9]} 42... Qb5 {[%clk 0:01:03.5]}
43. Ng5 {[%clk 0:00:18.5]} 43... Qd7 {[%clk 0:01:02.5]} 44. Qb4 {[%clk
0:00:17.6]} 44... Qc7 {[%clk 0:00:58.9]} 45. Kg2 {[%clk 0:00:16.1]} 45... a6
{[%clk 0:00:54.3]} 46. Qa4 {[%clk 0:00:15.5]} 46... Qb7 {[%clk 0:00:51.4]} 47.
Qe8 {[%clk 0:00:14.8]} 47... b5 {[%clk 0:00:49.1]} 48. b4 {[%clk 0:00:13.3]}
48... Qc7 {[%clk 0:00:44.7]} 49. h5 {[%clk 0:00:12.9]} 49... Qd7 {[%clk
0:00:42.5]} 50. Qa8 {[%clk 0:00:12.2]} 50... Qe7 {[%clk 0:00:42.1]} 51. Nf3
{[%clk 0:00:11.6]} 51... Qxb4 {[%clk 0:00:41.6]} 52. Qxa6 {[%clk 0:00:11.4]}
52... Qc4 {[%clk 0:00:41.1]} 53. Qa8 {[%clk 0:00:11]} 53... Qc7 {[%clk
0:00:37.9]} 54. Qe8 {[%clk 0:00:08.5]} 54... Qb7 {[%clk 0:00:36.5]} 55. h6
{[%clk 0:00:05.5]} 55... gxh6 {[%clk 0:00:37.4]} 56. Nh2 {[%clk 0:00:04.9]}
56... b4 {[%clk 0:00:36.2]} 57. Ng4 {[%clk 0:00:04.7]} 57... Kg7 {[%clk
0:00:36.4]} 58. Qd8 {[%clk 0:00:04.5]} 58... Nh7 {[%clk 0:00:32]} 59. Nf6 {[%clk
0:00:03.3]} 59... Nxf6 {[%clk 0:00:31.3]} 60. Qxf6+ {[%clk 0:00:03.1]} 60... Kh7
{[%clk 0:00:31.3]} 61. Qd8 {[%clk 0:00:01]} 61... b3 {[%clk 0:00:30.8]} 62. Qf8
{[%clk 0:00:01.5]} 62... b2 {[%clk 0:00:29.7]} 0-1

[Event "*** SCC Grand Prix: Titled Tuesday Blitz"]
[Site "Chess.com"]
[Date "2020.06.23"]
[Round "1"]
[White "kirillshevchenko"]
[Black "RestartingChess"]
[Result "1-0"]
[WhiteElo "2935"]
[BlackElo "2456"]
[TimeControl "180+1"]
[EndTime "10:08:39 PDT"]
[Termination "kirillshevchenko won by checkmate"]

1. c4 {[%clk 0:03:00.6]} 1... Nf6 {[%clk 0:02:56.2]} 2. Nc3 {[%clk 0:03:00.2]}
2... g6 {[%clk 0:02:55.5]} 3. g3 {[%clk 0:02:59.6]} 3... Bg7 {[%clk 0:02:56]} 4.
Bg2 {[%clk 0:03:00.1]} 4... O-O {[%clk 0:02:56]} 5. Nf3 {[%clk 0:03:00.5]} 5...
d6 {[%clk 0:02:56.3]} 6. O-O {[%clk 0:02:59.9]} 6... e5 {[%clk 0:02:56.2]} 7. d4
{[%clk 0:02:59.9]} 7... Nc6 {[%clk 0:02:55.1]} 8. dxe5 {[%clk 0:02:56.4]} 8...
Nxe5 {[%clk 0:02:53.9]} 9. b3 {[%clk 0:02:42.5]} 9... Rb8 {[%clk 0:02:46.4]} 10.
Bb2 {[%clk 0:02:41.1]} 10... Nc6 {[%clk 0:02:32]} 11. Rc1 {[%clk 0:02:34.3]}
11... Re8 {[%clk 0:02:31.8]} 12. Qd2 {[%clk 0:02:30.2]} 12... Bf5 {[%clk
0:02:28.5]} 13. Rfd1 {[%clk 0:02:25.1]} 13... a6 {[%clk 0:02:28.2]} 14. Nh4
{[%clk 0:02:03.5]} 14... Be6 {[%clk 0:02:17.9]} 15. Nd5 {[%clk 0:02:02]} 15...
Ne5 {[%clk 0:01:54.9]} 16. e4 {[%clk 0:01:45.3]} 16... Nxd5 {[%clk 0:01:43.9]}
17. cxd5 {[%clk 0:01:43.4]} 17... Bg4 {[%clk 0:01:44.1]} 18. f3 {[%clk 0:01:39]}
18... g5 {[%clk 0:01:38.4]} 19. fxg4 {[%clk 0:01:22]} 19... gxh4 {[%clk
0:01:38.3]} 20. gxh4 {[%clk 0:01:00.9]} 20... Qxh4 {[%clk 0:01:37]} 21. h3
{[%clk 0:01:01.2]} 21... Qg3 {[%clk 0:01:27.8]} 22. Rc3 {[%clk 0:00:59.2]} 22...
Qh4 {[%clk 0:01:19.7]} 23. Rxc7 {[%clk 0:00:59.1]} 23... Rec8 {[%clk 0:01:08]}
24. Rdc1 {[%clk 0:00:54.3]} 24... Rxc7 {[%clk 0:00:58.5]} 25. Rxc7 {[%clk
0:00:55.2]} 25... Bh6 {[%clk 0:00:58.4]} 26. Qf2 {[%clk 0:00:53.9]} 26... Qxf2+
{[%clk 0:00:53.3]} 27. Kxf2 {[%clk 0:00:53.1]} 27... Nd3+ {[%clk 0:00:54.2]} 28.
Ke2 {[%clk 0:00:47.7]} 28... Nxb2 {[%clk 0:00:54.6]} 29. e5 {[%clk 0:00:37.9]}
29... Re8 {[%clk 0:00:49.3]} 30. e6 {[%clk 0:00:24.1]} 30... fxe6 {[%clk
0:00:48.5]} 31. dxe6 {[%clk 0:00:18.6]} 31... Rxe6+ {[%clk 0:00:49.4]} 32. Kf1
{[%clk 0:00:18.5]} 32... Re5 {[%clk 0:00:47.1]} 33. Bxb7 {[%clk 0:00:12.3]}
33... Nd3 {[%clk 0:00:47.1]} 34. Bxa6 {[%clk 0:00:12.3]} 34... Re1+ {[%clk
0:00:43.4]} 35. Kg2 {[%clk 0:00:12.4]} 35... Nf4+ {[%clk 0:00:43.7]} 36. Kf3
{[%clk 0:00:12.9]} 36... Nxh3 {[%clk 0:00:35.7]} 37. Bc4+ {[%clk 0:00:13]} 37...
Kh8 {[%clk 0:00:33.9]} 38. a4 {[%clk 0:00:11.5]} 38... Re3+ {[%clk 0:00:27.1]}
39. Kg2 {[%clk 0:00:11.8]} 39... Bf4 {[%clk 0:00:20.5]} 40. a5 {[%clk
0:00:06.2]} 40... Rg3+ {[%clk 0:00:18.3]} 41. Kf1 {[%clk 0:00:06]} 41... Rg1+
{[%clk 0:00:18]} 42. Ke2 {[%clk 0:00:06]} 42... Ra1 {[%clk 0:00:18.3]} 43. a6
{[%clk 0:00:05.3]} 43... Ng5 {[%clk 0:00:15.4]} 44. b4 {[%clk 0:00:05.7]} 44...
Ne4 {[%clk 0:00:10.7]} 45. Kf3 {[%clk 0:00:05.7]} 45... d5 {[%clk 0:00:08.4]}
46. Rc8+ {[%clk 0:00:05.6]} 46... Kg7 {[%clk 0:00:08.9]} 47. Bxd5 {[%clk
0:00:06.2]} 47... Rxa6 {[%clk 0:00:04.1]} 48. Kxf4 {[%clk 0:00:05.2]} 48... Nf6
{[%clk 0:00:04.4]} 49. Rc7+ {[%clk 0:00:05.3]} 49... Kg6 {[%clk 0:00:04.5]} 50.
Bc4 {[%clk 0:00:04.8]} 50... Ra4 {[%clk 0:00:04.6]} 51. Bd3+ {[%clk 0:00:04.6]}
51... Ne4 {[%clk 0:00:04.2]} 52. Bxe4+ {[%clk 0:00:04.6]} 52... Kf6 {[%clk
0:00:05.1]} 53. Rc6+ {[%clk 0:00:05]} 53... Ke7 {[%clk 0:00:05.2]} 54. b5 {[%clk
0:00:05.5]} 54... Kd7 {[%clk 0:00:05]} 55. Ke5 {[%clk 0:00:05.1]} 55... Rb4
{[%clk 0:00:03]} 56. Bf5+ {[%clk 0:00:05.1]} 56... Ke7 {[%clk 0:00:02.9]} 57.
Rc7+ {[%clk 0:00:05.4]} 57... Kd8 {[%clk 0:00:03.6]} 58. Rc5 {[%clk 0:00:05.7]}
58... Ke7 {[%clk 0:00:03.1]} 59. g5 {[%clk 0:00:06.2]} 59... Kf7 {[%clk
0:00:02]} 60. Bxh7 {[%clk 0:00:06.3]} 60... Kg7 {[%clk 0:00:02.2]} 61. Be4
{[%clk 0:00:06.7]} 61... Kf7 {[%clk 0:00:02.6]} 62. Kd5 {[%clk 0:00:06.8]} 62...
Ke7 {[%clk 0:00:02.7]} 63. Bf5 {[%clk 0:00:06.1]} 63... Kf7 {[%clk 0:00:03.2]}
64. Kc6 {[%clk 0:00:06.4]} 64... Ke7 {[%clk 0:00:03.7]} 65. b6 {[%clk
0:00:06.8]} 65... Rb3 {[%clk 0:00:02.8]} 66. b7 {[%clk 0:00:06.9]} 66... Rxb7
{[%clk 0:00:02.5]} 67. Kxb7 {[%clk 0:00:07.1]} 67... Kd6 {[%clk 0:00:03.4]} 68.
Ra5 {[%clk 0:00:06.8]} 68... Ke7 {[%clk 0:00:04.3]} 69. Kc7 {[%clk 0:00:07]}
69... Kf7 {[%clk 0:00:05.2]} 70. Re5 {[%clk 0:00:07.1]} 70... Kg7 {[%clk
0:00:06.1]} 71. Re7+ {[%clk 0:00:07.3]} 71... Kf8 {[%clk 0:00:07]} 72. Kd6
{[%clk 0:00:07.9]} 72... Kg8 {[%clk 0:00:07.4]} 73. Ke6 {[%clk 0:00:08.5]} 73...
Kf8 {[%clk 0:00:08.3]} 74. Kf6 {[%clk 0:00:08.9]} 74... Kg8 {[%clk 0:00:08.8]}
75. Re8# {[%clk 0:00:09.8]} 1-0

[Event "*** SCC Grand Prix: Titled Tuesday Blitz"]
[Site "Chess.com"]
[Date "2020.06.23"]
[Round "1"]
[White "Chernobay_Artem"]
[Black "Lucas_Tomiello"]
[Result "0-1"]
[WhiteElo "2601"]
[BlackElo "2319"]
[TimeControl "180+1"]
[EndTime "10:08:40 PDT"]
[Termination "Lucas_Tomiello won by checkmate"]

1. e4 {[%clk 0:02:57.7]} 1... c5 {[%clk 0:03:00]} 2. Nf3 {[%clk 0:02:57.7]} 2...
d6 {[%clk 0:03:00.6]} 3. d4 {[%clk 0:02:57.7]} 3... cxd4 {[%clk 0:03:01.5]} 4.
Nxd4 {[%clk 0:02:58.5]} 4... Nf6 {[%clk 0:03:02.1]} 5. Nc3 {[%clk 0:02:59.2]}
5... a6 {[%clk 0:03:02.6]} 6. Bg5 {[%clk 0:02:59.7]} 6... Nbd7 {[%clk
0:03:02.4]} 7. f4 {[%clk 0:02:59.6]} 7... Qc7 {[%clk 0:03:01.7]} 8. Qe2 {[%clk
0:02:59.6]} 8... e5 {[%clk 0:02:47.1]} 9. Nf5 {[%clk 0:02:41.6]} 9... h6 {[%clk
0:02:46.1]} 10. Bh4 {[%clk 0:02:35.4]} 10... g6 {[%clk 0:02:43.3]} 11. Ne3
{[%clk 0:02:34]} 11... exf4 {[%clk 0:02:38.7]} 12. Ned5 {[%clk 0:02:34]} 12...
Nxd5 {[%clk 0:02:37.8]} 13. Nxd5 {[%clk 0:02:34.1]} 13... Qc6 {[%clk 0:02:14.9]}
14. O-O-O {[%clk 0:02:20.7]} 14... Bg7 {[%clk 0:02:08.7]} 15. Be7 {[%clk
0:02:09.9]} 15... Be5 {[%clk 0:01:57.4]} 16. g3 {[%clk 0:02:00.4]} 16... fxg3
{[%clk 0:01:49.3]} 17. hxg3 {[%clk 0:01:58.5]} 17... f6 {[%clk 0:01:28.8]} 18.
Bh3 {[%clk 0:01:46.6]} 18... Kf7 {[%clk 0:00:56.3]} 19. Rhf1 {[%clk 0:01:42.8]}
19... Kg7 {[%clk 0:00:55.1]} 20. Bxd7 {[%clk 0:00:57.1]} 20... Bxd7 {[%clk
0:00:52.7]} 21. Bxf6+ {[%clk 0:00:52.2]} 21... Bxf6 {[%clk 0:00:47.4]} 22. Rxf6
{[%clk 0:00:52.2]} 22... Rhf8 {[%clk 0:00:42.6]} 23. e5 {[%clk 0:00:48.2]} 23...
Bf5 {[%clk 0:00:30]} 24. Rxd6 {[%clk 0:00:45.3]} 24... Qa4 {[%clk 0:00:30]} 25.
Nc3 {[%clk 0:00:40.7]} 25... Qg4 {[%clk 0:00:27.5]} 26. Qe3 {[%clk 0:00:35.9]}
26... Rae8 {[%clk 0:00:24.9]} 27. a3 {[%clk 0:00:28.4]} 27... Qg5 {[%clk
0:00:24.2]} 28. Qxg5 {[%clk 0:00:27.8]} 28... hxg5 {[%clk 0:00:25.1]} 29. Re1
{[%clk 0:00:27.4]} 29... Re6 {[%clk 0:00:22.8]} 30. Na4 {[%clk 0:00:24.4]} 30...
Rfe8 {[%clk 0:00:20.6]} 31. Rxe6 {[%clk 0:00:23.2]} 31... Rxe6 {[%clk
0:00:21.5]} 32. Nc5 {[%clk 0:00:22.7]} 32... Re7 {[%clk 0:00:22.2]} 33. Kd2
{[%clk 0:00:22.3]} 33... Rc7 {[%clk 0:00:20.9]} 34. Nd3 {[%clk 0:00:21.3]} 34...
Re7 {[%clk 0:00:20.7]} 35. b4 {[%clk 0:00:20.2]} 35... Kf7 {[%clk 0:00:13.6]}
36. Re3 {[%clk 0:00:20]} 36... Ke6 {[%clk 0:00:13]} 37. a4 {[%clk 0:00:19.1]}
37... Kd5 {[%clk 0:00:13.3]} 38. Kc3 {[%clk 0:00:15]} 38... Rc7+ {[%clk
0:00:13]} 39. Kb3 {[%clk 0:00:14.9]} 39... Kd4 {[%clk 0:00:13.2]} 40. Re1 {[%clk
0:00:13.6]} 40... Rc3+ {[%clk 0:00:10.6]} 41. Kb2 {[%clk 0:00:13.8]} 41... Rc7
{[%clk 0:00:06]} 42. Nc5 {[%clk 0:00:11.1]} 42... Re7 {[%clk 0:00:04.4]} 43.
Nb3+ {[%clk 0:00:05]} 43... Kc4 {[%clk 0:00:04.6]} 44. c3 {[%clk 0:00:04.1]}
44... g4 {[%clk 0:00:03.7]} 45. Nd4 {[%clk 0:00:04.3]} 45... Kd3 {[%clk
0:00:03.3]} 46. e6 {[%clk 0:00:03.7]} 46... Be4 {[%clk 0:00:02.3]} 47. a5 {[%clk
0:00:03.3]} 47... Bd5 {[%clk 0:00:02]} 48. Nb3 {[%clk 0:00:03]} 48... Kc4 {[%clk
0:00:02.9]} 49. Nc5 {[%clk 0:00:03.1]} 49... Kb5 {[%clk 0:00:01.9]} 50. Re5
{[%clk 0:00:02.6]} 50... Kc6 {[%clk 0:00:02.4]} 51. Nd3 {[%clk 0:00:02.8]} 51...
Bxe6 {[%clk 0:00:02.5]} 52. Re3 {[%clk 0:00:03.7]} 52... Bf7 {[%clk 0:00:02.5]}
53. Nf4 {[%clk 0:00:04.2]} 53... Rxe3 {[%clk 0:00:02.7]} 54. Nd3 {[%clk
0:00:04.4]} 54... Rxg3 {[%clk 0:00:03.6]} 55. Kc2 {[%clk 0:00:05.3]} 55... Rg2+
{[%clk 0:00:04.1]} 56. Kc1 {[%clk 0:00:05]} 56... Bc4 {[%clk 0:00:04.5]} 57. Ne1
{[%clk 0:00:05.9]} 57... Rg1 {[%clk 0:00:04.4]} 58. Kd1 {[%clk 0:00:06.8]} 58...
Rxe1+ {[%clk 0:00:05]} 59. Kd2 {[%clk 0:00:06.7]} 59... Kd5 {[%clk 0:00:05.9]}
60. Kxe1 {[%clk 0:00:07.1]} 60... Ke4 {[%clk 0:00:06.4]} 61. Kf2 {[%clk
0:00:08]} 61... Kf4 {[%clk 0:00:06.8]} 62. Kg1 {[%clk 0:00:08.1]} 62... g3
{[%clk 0:00:07.3]} 63. Kh1 {[%clk 0:00:08.5]} 63... Kf3 {[%clk 0:00:07.2]} 64.
Kg1 {[%clk 0:00:08.8]} 64... g2 {[%clk 0:00:05.7]} 65. Kh2 {[%clk 0:00:09.1]}
65... Kf2 {[%clk 0:00:05.8]} 66. Kh3 {[%clk 0:00:10]} 66... g1=Q {[%clk
0:00:06.3]} 67. Kh4 {[%clk 0:00:10.9]} 67... Qg3# {[%clk 0:00:06.2]} 0-1

[Event "*** SCC Grand Prix: Titled Tuesday Blitz"]
[Site "Chess.com"]
[Date "2020.06.23"]
[Round "1"]
[White "SHIVACalypso"]
[Black "Alexander_Donchenko"]
[Result "1-0"]
[WhiteElo "2365"]
[BlackElo "2674"]
[TimeControl "180+1"]
[EndTime "10:08:42 PDT"]
[Termination "SHIVACalypso won by checkmate"]

1. Nf3 {[%clk 0:03:00.9]} 1... Nf6 {[%clk 0:02:59.2]} 2. c4 {[%clk 0:03:00.3]}
2... e6 {[%clk 0:02:59.2]} 3. g3 {[%clk 0:03:00]} 3... a6 {[%clk 0:02:59.5]} 4.
Bg2 {[%clk 0:02:58.8]} 4... b5 {[%clk 0:02:59.8]} 5. b3 {[%clk 0:02:58.2]} 5...
c5 {[%clk 0:03:00.2]} 6. O-O {[%clk 0:02:56.6]} 6... Bb7 {[%clk 0:03:00.3]} 7.
Bb2 {[%clk 0:02:48.9]} 7... Be7 {[%clk 0:03:00.2]} 8. d4 {[%clk 0:02:45.6]} 8...
bxc4 {[%clk 0:02:59.8]} 9. bxc4 {[%clk 0:02:45.3]} 9... cxd4 {[%clk 0:03:00]}
10. Nxd4 {[%clk 0:02:39]} 10... Bxg2 {[%clk 0:02:59.5]} 11. Kxg2 {[%clk
0:02:39.9]} 11... Qc8 {[%clk 0:02:59.5]} 12. Nd2 {[%clk 0:02:35]} 12... Qb7+
{[%clk 0:02:58.8]} 13. N2f3 {[%clk 0:02:20.8]} 13... Qxb2 {[%clk 0:02:58.5]} 14.
Qa4 {[%clk 0:02:11.3]} 14... Qb4 {[%clk 0:02:56.5]} 15. Qc2 {[%clk 0:02:09.3]}
15... Qc5 {[%clk 0:02:54.7]} 16. Rab1 {[%clk 0:02:07.6]} 16... Nc6 {[%clk
0:02:54.3]} 17. Nb3 {[%clk 0:02:04.7]} 17... Qf5 {[%clk 0:02:54]} 18. Qb2 {[%clk
0:02:03.3]} 18... O-O {[%clk 0:02:52.2]} 19. Rfd1 {[%clk 0:02:02]} 19... Rab8
{[%clk 0:02:51.5]} 20. Qd2 {[%clk 0:01:48.7]} 20... Rfc8 {[%clk 0:02:50.3]} 21.
Rbc1 {[%clk 0:01:40.1]} 21... h6 {[%clk 0:02:49.3]} 22. e3 {[%clk 0:01:31.3]}
22... a5 {[%clk 0:02:47.7]} 23. Nbd4 {[%clk 0:01:23.4]} 23... Nxd4 {[%clk
0:02:47]} 24. exd4 {[%clk 0:01:24.3]} 24... Ba3 {[%clk 0:02:38.7]} 25. Rc2
{[%clk 0:01:20.7]} 25... Ne4 {[%clk 0:02:37.9]} 26. Qd3 {[%clk 0:01:18.1]} 26...
Nd6 {[%clk 0:02:35.6]} 27. c5 {[%clk 0:01:14.1]} 27... Qxd3 {[%clk 0:02:20.3]}
28. Rxd3 {[%clk 0:01:15]} 28... Nb5 {[%clk 0:02:20.4]} 29. Ne5 {[%clk
0:01:08.7]} 29... Rb7 {[%clk 0:02:19.9]} 30. Nc4 {[%clk 0:01:07.5]} 30... Bb4
{[%clk 0:01:58.3]} 31. a3 {[%clk 0:01:05.7]} 31... d5 {[%clk 0:01:02.9]} 32. Nb6
{[%clk 0:00:37.6]} 32... Nxa3 {[%clk 0:00:53.7]} 33. Rxa3 {[%clk 0:00:28.5]}
33... Rxb6 {[%clk 0:00:50]} 34. cxb6 {[%clk 0:00:28.4]} 34... Rxc2 {[%clk
0:00:50.5]} 35. b7 {[%clk 0:00:28.5]} 35... Bd6 {[%clk 0:00:51]} 36. Rxa5 {[%clk
0:00:24.9]} 36... Rb2 {[%clk 0:00:50.7]} 37. Ra8+ {[%clk 0:00:24.5]} 37... Kh7
{[%clk 0:00:50.7]} 38. Rd8 {[%clk 0:00:24.4]} 38... Rxb7 {[%clk 0:00:50.3]} 39.
Rxd6 {[%clk 0:00:24.4]} 39... Rb4 {[%clk 0:00:50.9]} 40. Rd7 {[%clk 0:00:24.3]}
40... Kg6 {[%clk 0:00:50.5]} 41. Ra7 {[%clk 0:00:19.6]} 41... Rxd4 {[%clk
0:00:50.4]} 42. Kf3 {[%clk 0:00:20]} 42... h5 {[%clk 0:00:50.5]} 43. h4 {[%clk
0:00:18.7]} 43... Rb4 {[%clk 0:00:49.8]} 44. Ke3 {[%clk 0:00:18.8]} 44... Kf6
{[%clk 0:00:49.7]} 45. Ra6 {[%clk 0:00:18.6]} 45... Rb7 {[%clk 0:00:48.5]} 46.
Ra4 {[%clk 0:00:18.5]} 46... Ke5 {[%clk 0:00:47.2]} 47. Ra5 {[%clk 0:00:18.3]}
47... Rb3+ {[%clk 0:00:46.4]} 48. Ke2 {[%clk 0:00:17.7]} 48... g6 {[%clk
0:00:45.8]} 49. Ra7 {[%clk 0:00:17.3]} 49... f5 {[%clk 0:00:45.2]} 50. Rg7
{[%clk 0:00:16.8]} 50... Kf6 {[%clk 0:00:45.3]} 51. Ra7 {[%clk 0:00:16.4]} 51...
d4 {[%clk 0:00:45.3]} 52. Ra5 {[%clk 0:00:15.3]} 52... Rb6 {[%clk 0:00:42.1]}
53. Kd3 {[%clk 0:00:12.8]} 53... e5 {[%clk 0:00:42.3]} 54. Ra2 {[%clk 0:00:12]}
54... Ke6 {[%clk 0:00:40.1]} 55. Ra8 {[%clk 0:00:11]} 55... Kd5 {[%clk
0:00:39.2]} 56. Rd8+ {[%clk 0:00:10.4]} 56... Rd6 {[%clk 0:00:38.9]} 57. Rg8
{[%clk 0:00:10.5]} 57... e4+ {[%clk 0:00:39.3]} 58. Kd2 {[%clk 0:00:10.5]} 58...
Ra6 {[%clk 0:00:39.2]} 59. Rd8+ {[%clk 0:00:09.5]} 59... Ke5 {[%clk 0:00:39.4]}
60. Re8+ {[%clk 0:00:09.8]} 60... Kf6 {[%clk 0:00:40]} 61. Rf8+ {[%clk
0:00:09.9]} 61... Ke7 {[%clk 0:00:40.3]} 62. Rg8 {[%clk 0:00:09.5]} 62... Ra2+
{[%clk 0:00:39.9]} 63. Ke1 {[%clk 0:00:09]} 63... Kf7 {[%clk 0:00:40.1]} 64. Rb8
{[%clk 0:00:08.8]} 64... d3 {[%clk 0:00:39.7]} 65. Rb7+ {[%clk 0:00:09.1]} 65...
Kf6 {[%clk 0:00:35.5]} 66. Rb6+ {[%clk 0:00:09.4]} 66... Kg7 {[%clk 0:00:35.6]}
67. Rb7+ {[%clk 0:00:08.9]} 67... Kh6 {[%clk 0:00:35.8]} 68. Rd7 {[%clk
0:00:07.8]} 68... Ra1+ {[%clk 0:00:34.7]} 69. Kd2 {[%clk 0:00:07]} 69... Rf1
{[%clk 0:00:35.6]} 70. Ke3 {[%clk 0:00:06.5]} 70... Re1+ {[%clk 0:00:36.1]} 71.
Kf4 {[%clk 0:00:06.7]} 71... Re2 {[%clk 0:00:36]} 72. f3 {[%clk 0:00:06.4]}
72... Rf2 {[%clk 0:00:35.1]} 73. Ke5 {[%clk 0:00:05.2]} 73... Rxf3 {[%clk
0:00:35]} 74. Kf6 {[%clk 0:00:05.7]} 74... d2 {[%clk 0:00:21.1]} 75. Rd8 {[%clk
0:00:06]} 75... d1=Q {[%clk 0:00:19.9]} 76. Rh8# {[%clk 0:00:04.6]} 1-0